bitfinex/quotes_ETHUSD_20241116
["timestamp","ask_amount","ask_price","bid_price","bid_amount"]
[1731725516824,3.2144,3111.0,3110.4,3.21501]
[1731725517032,0.05624657,3110.6,3110.4,3.21501]
[1731725517231,3.2144,3111.0,3110.4,3.21501]
[1731725517434,0.05619355,3110.5,3110.4,3.21501]
[1731725517651,3.2144,3111.0,3110.4,3.98379719]
[1731725517847,0.05619355,3110.5,3110.4,3.21501]
[1731725518054,3.2144,3111.0,3110.4,3.21501]
[1731725518236,0.05619355,3110.5,3110.4,3.21501]
[1731725518443,3.21415,3111.3,3110.6,3.2148]
[1731725518764,0.05656458,3111.2,3110.6,3.2148]
[1731725519279,3.27077458,3111.2,3110.6,3.2148]
[1731725520269,3.27077458,3111.2,3110.7,3.21463]
[1731725520270,0.05656458,3111.2,3110.7,3.21463]
[1731725520602,3.21439,3111.1,3110.4,3.21498]
[1731725520799,3.27096122,3111.1,3110.5,1.176399]
[1731725521108,0.05657122,3111.1,3110.5,1.176399]
[1731725521403,0.05657122,3111.1,3110.3,3.62901002]
[1731725521404,3.21455,3110.9,3110.3,6.21511]
[1731725521784,0.05641542,3110.8,3110.3,6.21511]
[1731725521987,3.27109542,3110.8,3110.3,3.0]
[1731725522610,0.05641542,3110.8,3110.3,6.21509]
[1731725522780,0.05641542,3110.8,3110.3,4.3585728]
[1731725523104,0.05641542,3110.8,3109.5,0.02]
[1731725523105,0.05641542,3110.8,3110.0,3.0]
[1731725523402,3.21498,3110.5,3110.0,3.0]
[1731725523705,0.05641542,3110.8,3109.1,3.3615631]
[1731725523706,3.98815,3110.0,3109.3,3.68974613]
[1731725524004,3.27145677,3109.9,3109.3,6.90585613]
[1731725524162,0.05592677,3109.9,3109.4,3.90660561]
[1731725524364,0.05592677,3109.9,3109.4,0.69058561]
[1731725525058,0.05592677,3109.9,3109.4,3.69058561]
[1731725525262,0.05592677,3109.9,3109.5,3.21594]
[1731725525872,3.21533,3110.1,3109.5,3.21594]
[1731725526189,3.21533,3110.1,3109.4,3.69058561]
[1731725526190,3.2714098,3110.0,3109.4,3.69058561]
[1731725526391,0.0559798,3110.0,3109.4,6.90659561]
[1731725526794,0.0559798,3110.0,3109.5,3.21593]
[1731725527201,3.2714098,3110.0,3109.4,6.90661561]
[1731725527517,0.0559798,3110.0,3109.4,6.90661561]
[1731725528121,0.0559798,3110.0,3109.5,4.66158242]
[1731725528303,0.7727,3110.8,3109.9,6.11327613]
[1731725528508,0.05627299,3110.7,3110.3,0.792]
[1731725528715,3.98711,3111.0,3110.4,3.21501]
[1731725528909,0.05448016,3110.9,3110.4,3.21501]
[1731725529094,3.26899016,3110.9,3110.3,0.792]
[1731725529704,3.26899016,3110.9,3110.3,3.792]
[1731725530104,3.21467,3110.8,3110.3,3.792]
[1731725530401,3.26916158,3110.7,3110.3,3.792]
[1731725530986,0.05439158,3110.7,3110.3,3.792]
[1731725531187,0.05439158,3110.7,3110.3,5.10402561]
[1731725531389,3.21467,3110.8,3110.3,5.10402561]
[1731725531683,3.98712,3111.0,3110.3,5.10402561]
[1731725531684,0.05439158,3110.7,3110.3,5.10402561]
[1731725531925,3.98712,3111.0,3110.3,5.10402561]
[1731725532232,0.05449759,3110.9,3110.4,3.21492]
[1731725532525,0.05449759,3110.9,3110.4,4.65810917]
[1731725532731,0.05449759,3110.9,3110.4,4.93810917]
[1731725533728,0.05449759,3110.9,3110.5,3.2149]
[1731725534024,0.05449759,3110.9,3110.6,3.21477]
[1731725534234,0.05449759,3110.9,3110.7,3.8323012]
[1731725534392,4.0449,3111.3,3110.7,3.21462]
[1731725534587,0.05452118,3110.8,3110.7,6.21462]
[1731725534793,4.0449,3111.3,3110.7,3.21462]
[1731725535131,4.0449,3111.3,3110.7,6.21462]
[1731725535437,4.0449,3111.3,3110.5,6.11265613]
[1731725535438,3.26893318,3111.2,3110.6,3.0]
[1731725535813,3.26893318,3111.2,3110.6,6.2148]
[1731725536322,0.05473318,3111.2,3110.7,3.21471]
[1731725536898,0.05473318,3111.2,3110.7,3.21791]
[1731725537208,0.05473318,3111.2,3110.7,4.52281317]
[1731725540658,0.05473318,3111.2,3110.9,3.21443]
[1731725540827,0.05473318,3111.2,3111.0,0.7519]
[1731725541012,0.8308,3111.7,3111.0,3.96627]
[1731725541215,4.0445,3111.7,3111.0,3.96947]
[1731725541414,0.05495666,3111.6,3111.0,3.96947]
[1731725542459,0.05495666,3111.6,3111.0,4.98406296]
[1731725543464,0.05495666,3111.6,3111.2,3.0]
[1731725543817,0.05495666,3111.6,3111.2,3.0032]
[1731725545130,3.26873666,3111.6,3111.2,3.0032]
[1731725545357,0.05495666,3111.6,3111.2,0.0032]
[1731725545847,3.21398,3111.5,3111.2,0.0032]
[1731725546223,0.0548507,3111.4,3111.2,0.0032]
[1731725546939,3.21409,3111.3,3111.2,0.0032]
[1731725547146,3.26891065,3111.3,3111.2,0.0032]
[1731725548975,0.05482065,3111.3,3111.2,0.0032]
[1731725549449,3.21398,3111.5,3111.2,0.0032]
[1731725549948,0.05487363,3111.4,3111.2,0.0032]
[1731725551780,0.05482194,3111.3,3111.2,0.61471461]
[1731725552149,3.9687,3111.9,3111.3,3.21406]
[1731725552348,0.05510335,3111.8,3111.3,3.21406]
[1731725552583,0.05510335,3111.8,3111.7,3.73024613]
[1731725552936,0.7552,3112.2,3111.7,6.94391613]
[1731725553376,0.05525994,3112.1,3111.7,6.94391613]
[1731725553674,0.05525994,3112.1,3111.7,3.73344613]
[1731725554583,3.21301,3112.4,3111.7,3.73344613]
[1731725554880,0.05522165,3112.0,3111.7,3.73344613]
[1731725555089,3.21295,3112.4,3111.7,3.73344613]
[1731725555255,0.05516868,3111.9,3111.7,3.73344613]
[1731725555444,3.21343,3112.0,3111.7,0.0032]
[1731725555792,3.96863,3112.0,3111.7,0.0032]
[1731725555971,0.05518106,3111.9,3111.7,0.0032]
[1731725556149,3.21357,3111.8,3111.7,0.0032]
[1731725556466,3.26869809,3111.8,3111.7,0.0032]
[1731725559499,0.05512809,3111.8,3111.7,0.0032]
[1731725560145,3.21297,3112.4,3111.7,6.11460613]
[1731725560350,3.21297,3112.4,3111.8,4.046]
[1731725560351,0.05537594,3112.3,3111.8,4.046]
[1731725561178,0.05537594,3112.3,3111.8,4.0492]
[1731725561386,0.05537594,3112.3,3111.8,4.1134667]
[1731725561888,0.05537594,3112.3,3111.8,4.0492]
[1731725562685,0.05537594,3112.3,3111.8,4.11346594]
[1731725562886,0.05537594,3112.3,3111.8,5.07169221]
[1731725563255,3.21277,3112.6,3111.9,3.85255896]
[1731725563449,0.05535738,3112.2,3111.9,3.85255896]
[1731725563989,0.05530442,3112.1,3111.9,3.85255896]
[1731725564187,0.05530442,3112.1,3111.9,3.91682131]
[1731725564391,3.21277,3112.6,3112.0,0.89885135]
[1731725564554,0.05525145,3112.0,3111.9,3.85255896]
[1731725564753,3.21285,3112.5,3111.9,3.85255896]
[1731725564980,3.21295,3112.4,3111.9,0.63910896]
[1731725565164,3.26841328,3112.4,3111.8,4.85819221]
[1731725565733,3.21314,3112.3,3111.8,4.85819221]
[1731725565993,3.21314,3112.3,3111.9,0.77559383]
[1731725565994,0.05536058,3112.2,3111.9,0.77559383]
[1731725566454,3.21292,3112.5,3111.9,0.77559383]
[1731725566654,0.05530762,3112.1,3111.9,0.77559383]
[1731725566880,3.21292,3112.5,3111.9,0.77559383]
[1731725567051,0.05525466,3112.0,3111.9,0.77559383]
[1731725567251,3.21292,3112.5,3111.9,0.77559383]
[1731725567492,0.05525466,3112.0,3111.9,0.77559383]
[1731725567787,3.21278,3112.6,3111.9,0.77559383]
[1731725567991,0.05525466,3112.0,3111.9,0.77559383]
[1731725568199,3.21296,3112.4,3111.9,0.77559383]
[1731725568367,0.05525466,3112.0,3111.9,0.77559383]
[1731725568686,3.21296,3112.4,3111.9,0.77559383]
[1731725568887,0.05525466,3112.0,3111.9,0.77559383]
[1731725569087,3.21296,3112.4,3111.9,0.77559383]
[1731725569293,3.21296,3112.4,3111.9,0.78559383]
[1731725569523,0.05541354,3112.3,3112.0,6.99681873]
[1731725569827,3.2125,3112.9,3112.0,6.99680873]
[1731725569983,0.05536287,3112.2,3112.1,7.03386]
[1731725570323,3.21254,3112.8,3112.2,3.21311]
[1731725570627,0.05562762,3112.7,3112.2,3.21311]
[1731725571189,0.05562762,3112.7,3112.3,6.11079613]
[1731725571495,3.21244,3112.9,3112.4,0.61207961]
[1731725571880,0.05571719,3112.8,3112.4,0.61207961]
[1731725572083,0.05571719,3112.8,3112.4,3.82498961]
[1731725572490,3.99221,3113.0,3112.4,3.82498961]
[1731725573027,3.22131,3114.0,3112.4,3.82498961]
[1731725573028,0.05577013,3112.9,3112.6,6.93099613]
[1731725573178,0.05577013,3112.9,3112.7,6.21257]
[1731725573382,3.21203,3113.3,3112.7,6.21577]
[1731725573612,0.05571719,3112.8,3112.7,6.21577]
[1731725573931,3.21184,3113.5,3112.7,4.38577852]
[1731725574095,3.21194,3113.4,3112.8,3.21252]
[1731725574280,3.21184,3113.5,3112.8,0.0032]
[1731725574480,3.21203,3113.3,3112.8,0.0032]
[1731725574926,3.21213,3113.2,3112.8,0.0032]
[1731725575751,3.21185,3113.5,3112.8,1.40987747]
[1731725575921,3.21202,3113.3,3112.8,1.40987747]
[1731725576285,3.21214,3113.2,3112.8,1.40987747]
[1731725576899,3.21219,3113.2,3112.8,1.40987747]
[1731725578006,3.21202,3113.3,3112.8,1.40987747]
[1731725578530,3.21233,3113.0,3112.8,0.2532]
[1731725578722,3.21243,3112.9,3112.8,0.2532]
[1731725579332,3.21243,3112.9,3112.8,0.0032]
[1731725579935,3.2124,3113.0,3112.8,0.0032]
[1731725580096,3.21243,3112.9,3112.8,0.0032]
[1731725580894,3.2124,3113.0,3112.8,0.0032]
[1731725581196,3.21243,3112.9,3112.8,0.0032]
[1731725583139,3.26821846,3112.9,3112.8,0.0032]
[1731725584197,0.05578846,3112.9,3112.8,0.0032]
[1731725584396,0.05578846,3112.9,3112.8,6.98554]
[1731725584637,3.21172,3113.6,3113.0,3.0]
[1731725584847,3.21172,3113.6,3113.0,3.21232]
[1731725585003,0.05242436,3113.5,3113.0,3.21232]
[1731725585393,3.26424436,3113.5,3112.9,3.0]
[1731725585631,0.05242436,3113.5,3113.3,0.7698]
[1731725585839,0.05242436,3113.5,3113.3,0.773]
[1731725586045,3.21161,3113.7,3113.3,0.773]
[1731725586046,3.21161,3113.7,3113.3,1.14007461]
[1731725586652,0.05247727,3113.6,3113.3,1.14007461]
[1731725586940,0.05247727,3113.6,3113.3,0.6017728]
[1731725587123,3.21142,3113.9,3113.3,0.6017728]
[1731725587333,3.21159,3113.8,3113.3,0.6017728]
[1731725587528,3.26417308,3113.8,3113.3,0.6017728]
[1731725588040,3.26417308,3113.8,3113.3,0.0032]
[1731725588041,3.21192,3113.4,3113.3,0.0032]
[1731725588204,4.00072,3113.4,3113.3,0.0032]
[1731725588406,4.0531377,3113.4,3113.3,0.0032]
[1731725593748,4.0631377,3113.4,3113.3,0.0032]
[1731725597310,4.0531377,3113.4,3113.3,0.0032]
[1731725597537,4.79162247,3113.4,3113.3,0.0032]
[1731725597739,4.79162247,3113.4,3112.1,0.7718]
[1731725597740,3.21316,3112.2,3112.1,0.7718]
[1731725598155,3.264931,3112.2,3112.1,0.7718]
[1731725598559,3.21344,3112.0,3111.9,0.7718]
[1731725598713,3.21344,3112.0,3111.7,0.7718]
[1731725598912,3.2650808,3112.0,3111.7,0.7718]
[1731725599923,3.2650808,3112.0,3111.7,0.77501476]
[1731725600314,0.0516408,3112.0,3111.7,0.77501476]
[1731725600516,3.2650108,3112.0,3111.7,0.77501476]
[1731725600715,3.21337,3112.0,3111.7,0.77501476]
[1731725600955,0.05156676,3111.9,3111.7,0.77501476]
[1731725601751,0.05156676,3111.9,3111.7,4.71966205]
[1731725602048,3.21306,3112.3,3111.8,3.0]
[1731725602209,3.21285,3112.5,3111.8,3.0]
[1731725602412,3.21274,3112.7,3112.1,2.89774613]
[1731725602635,3.21245,3112.9,3112.3,0.7718]
[1731725602854,3.21245,3112.9,3112.3,0.77501476]
[1731725603158,3.21264,3112.7,3112.3,0.77501476]
[1731725604219,3.21264,3112.7,3112.3,1.05501476]
[1731725605731,3.21274,3112.6,3112.3,1.05501476]
[1731725606315,3.21295,3112.4,3112.3,0.77501476]
[1731725607031,3.21295,3112.4,3112.3,0.00321476]
[1731725607783,4.04045,3112.4,3112.3,0.00321476]
[1731725608076,5.087053,3112.4,3112.3,0.00321476]
[1731725612456,3.21295,3112.4,3112.3,0.00321476]
[1731725612835,3.26475636,3112.4,3112.3,0.00321476]
[1731725614276,0.05180636,3112.4,3112.3,0.00321476]
[1731725614584,3.21274,3112.6,3112.3,0.00321476]
[1731725614789,0.05185931,3112.5,3112.3,0.00321476]
[1731725614951,3.21295,3112.4,3112.3,0.00321476]
[1731725615380,3.26475636,3112.4,3112.3,0.00321476]
[1731725615795,3.912506,3112.4,3112.3,0.00321476]
[1731725616090,4.717006,3112.4,3112.3,0.00321476]
[1731725621513,5.277006,3112.4,3112.3,0.00321476]
[1731725623310,8.287006,3112.4,3112.3,4.76e-06]
[1731725623598,3.21409,3111.3,3111.2,0.06]
[1731725623804,3.26526604,3111.3,3111.1,0.63718847]
[1731725623986,3.21419,3111.2,3111.1,0.63718847]
[1731725624300,3.26530618,3111.2,3111.1,0.63718847]
[1731725624500,4.06980618,3111.2,3110.7,0.7686]
[1731725624873,3.21446,3111.0,3110.7,0.7686]
[1731725625058,4.06980618,3111.2,3110.7,0.7686]
[1731725625059,3.2146,3110.8,3110.7,0.7686]
[1731725625491,3.26550418,3110.8,3110.7,0.7686]
[1731725626296,3.21482,3110.6,3110.2,0.7686]
[1731725626523,3.21482,3110.6,3110.3,0.06]
[1731725626693,0.05072773,3110.5,3110.3,0.06]
[1731725627885,0.05072773,3110.5,3110.2,3.7686]
[1731725628084,3.21479,3110.7,3110.3,0.00321476]
[1731725628321,0.0506637,3110.4,3110.3,0.00321476]
[1731725628519,3.21479,3110.7,3110.3,0.00321476]
[1731725628690,0.0506637,3110.4,3110.3,0.00321476]
[1731725628893,3.21479,3110.7,3110.3,0.00321476]
[1731725629092,3.21481,3110.6,3110.3,0.00321476]
[1731725629294,3.26557974,3110.6,3110.3,0.00321476]
[1731725630436,0.05076974,3110.6,3110.3,0.00321476]
[1731725631105,3.26557974,3110.6,3110.3,0.00321476]
[1731725631498,3.21498,3110.5,3110.3,0.00321476]
[1731725631917,0.0506637,3110.4,3110.3,0.00321476]
[1731725632400,3.21471,3110.7,3110.3,0.00321476]
[1731725632592,0.05076974,3110.6,3110.3,0.00321476]
[1731725633630,3.21492,3110.5,3110.3,0.00321476]
[1731725634136,0.0506637,3110.4,3110.3,0.00321476]
[1731725635194,3.2656837,3110.4,3110.3,0.00321476]
[1731725635493,0.0506637,3110.4,3110.3,0.00321476]
[1731725635927,3.2656837,3110.4,3110.3,0.00321476]
[1731725641413,3.91374407,3110.4,3110.3,0.00321476]
[1731725642245,3.2656837,3110.4,3110.3,0.00321476]
[1731725642638,0.0506637,3110.4,3110.3,0.00321476]
[1731725643518,3.2656837,3110.4,3110.3,0.00321476]
[1731725649355,4.0764837,3110.4,3110.3,0.00321476]
[1731725651781,3.2656837,3110.4,3110.3,0.00321476]
[1731725652294,3.91374407,3110.4,3110.3,0.00321476]
[1731725658770,4.67244407,3110.4,3110.3,0.00321476]
[1731725658985,7.67244407,3110.4,3110.3,0.00321476]
[1731725672518,6.91374407,3110.4,3110.3,0.00321476]
[1731725676923,3.91374407,3110.4,3110.3,0.00321476]
[1731725681033,3.2656837,3110.4,3110.3,0.00321476]
[1731725681233,3.2656837,3110.4,3110.3,0.80951476]
[1731725684917,0.0506637,3110.4,3110.3,0.80951476]
[1731725685122,0.0506637,3110.4,3110.3,1.04829538]
[1731725687164,3.2656837,3110.4,3110.3,1.04829538]
[1731725687333,0.0506637,3110.4,3110.3,0.80951476]
[1731725689257,3.2656837,3110.4,3110.3,0.80951476]
[1731725689563,0.0506637,3110.4,3110.3,0.80951476]
[1731725690154,3.2656837,3110.4,3110.3,0.80951476]
[1731725691265,3.2656837,3110.4,3110.3,1.02436213]
[1731725691468,3.2656837,3110.4,3110.3,0.80951476]
[1731725694053,3.2656837,3110.4,3110.3,0.00321476]
[1731725703558,3.2656837,3110.4,3110.3,0.24240688]
[1731725704368,3.2656837,3110.4,3110.3,0.00321476]
[1731725704541,3.2656837,3110.4,3110.3,0.24242978]
[1731725705334,3.2656837,3110.4,3110.3,0.00321476]
[1731725707144,3.2656837,3110.4,3110.3,0.24247815]
[1731725707645,3.2656837,3110.4,3110.3,0.24250082]
[1731725708141,3.2656837,3110.4,3110.3,0.00321476]
[1731725708686,3.2656837,3110.4,3110.3,0.24250234]
[1731725708840,3.2656837,3110.4,3110.3,0.00321476]
[1731725709040,3.2656837,3110.4,3110.3,0.24250257]
[1731725709474,0.0506637,3110.4,3110.3,1.58146153]
[1731725709781,3.2656837,3110.4,3110.3,1.81820768]
[1731725710273,3.2656837,3110.4,3110.3,0.24250257]
[1731725710800,3.2656837,3110.4,3110.3,0.00321476]
[1731725710943,4.0389837,3110.4,3110.3,0.00321476]
[1731725712537,3.2656837,3110.4,3110.3,0.00321476]
[1731725712788,0.03604782,3110.4,3110.3,0.00321476]
[1731725712983,0.03604782,3110.4,3110.3,1.47879777]
[1731725713281,0.7733,3111.3,3110.3,1.47879777]
[1731725713282,3.21412,3111.3,3110.5,0.7806]
[1731725713443,3.21392,3111.5,3111.1,2.11955896]
[1731725713643,3.21406,3111.4,3111.1,2.12277372]
[1731725713842,3.21411,3111.3,3111.1,0.78381476]
[1731725714073,3.21357,3111.8,3111.1,0.78381476]
[1731725714277,3.21419,3111.2,3111.1,0.78381476]
[1731725714846,3.21419,3111.2,3111.1,0.00321476]
[1731725718070,3.2493264,3111.2,3111.1,0.00321476]
[1731725721311,3.7993264,3111.2,3111.1,0.00321476]
[1731725722086,3.8093264,3111.2,3111.1,0.00321476]
[1731725722416,8.68370304,3111.2,3111.1,4.76e-06]
[1731725727177,8.67370304,3111.2,3111.1,4.76e-06]
[1731725727486,7.35040304,3111.2,3111.1,4.76e-06]
[1731725730722,4.35040304,3111.2,3111.1,4.76e-06]
[1731725730931,3.2493264,3111.2,3111.1,4.76e-06]
[1731725736180,0.0351364,3111.2,3111.1,0.77310476]
[1731725736421,3.21407,3111.4,3111.1,0.77310476]
[1731725736783,0.03528855,3111.3,3111.1,0.77310476]
[1731725737291,3.24938855,3111.3,3111.1,0.77310476]
[1731725737877,3.21419,3111.2,3111.1,0.77310476]
[1731725738086,3.24946343,3111.2,3111.1,0.77310476]
[1731725740689,3.24946343,3111.2,3111.1,4.76e-06]
[1731725743425,0.03527343,3111.2,3111.1,4.76e-06]
[1731725743731,3.21419,3111.2,3111.1,4.76e-06]
[1731725744034,3.24945035,3111.2,3111.1,4.76e-06]
[1731725748310,3.24945035,3111.2,3111.1,0.77310476]
[1731725748510,0.03526035,3111.2,3111.1,0.77310476]
[1731725748745,3.21409,3111.3,3111.1,0.77310476]
[1731725749097,0.03404716,3111.2,3111.1,0.77310476]
[1731725749339,3.21409,3111.3,3111.1,0.77310476]
[1731725749624,0.03404716,3111.2,3111.1,0.77310476]
[1731725750012,3.21409,3111.3,3111.1,0.77310476]
[1731725750349,0.03405417,3111.2,3111.1,0.77310476]
[1731725750551,0.03405417,3111.2,3111.1,4.76e-06]
[1731725750552,3.21419,3111.2,3111.1,4.76e-06]
[1731725750844,3.57305859,3111.2,3111.1,4.76e-06]
[1731725751258,3.24824417,3111.2,3111.1,4.76e-06]
[1731725752356,4.00834417,3111.2,3111.1,4.76e-06]
[1731725753447,3.24824417,3111.2,3111.1,4.76e-06]
[1731725764639,0.03405417,3111.2,3111.1,4.76e-06]
[1731725764944,3.7601,3111.7,3111.1,2.15419812]
[1731725764945,3.21371,3111.7,3111.1,2.15419812]
[1731725765140,0.03404343,3111.2,3111.1,0.81630476]
[1731725765340,3.2139,3111.5,3111.1,0.81630476]
[1731725765559,0.03404343,3111.2,3111.1,0.81630476]
[1731725765763,3.2139,3111.5,3111.1,1.35317257]
[1731725765976,0.03404343,3111.2,3111.1,0.81630476]
[1731725766175,3.21399,3111.4,3111.1,0.81630476]
[1731725766383,0.03404343,3111.2,3111.1,0.81630476]
[1731725766555,3.21399,3111.4,3111.1,0.81630476]
[1731725766762,0.03404343,3111.2,3111.1,0.81630476]
[1731725767078,3.2141,3111.3,3111.1,0.81630476]
[1731725767284,0.03404343,3111.2,3111.1,0.81630476]
[1731725767578,3.2141,3111.3,3111.1,0.81630476]
[1731725767779,0.03404343,3111.2,3111.1,0.81630476]
[1731725768087,3.2141,3111.3,3111.1,0.81630476]
[1731725768283,0.03404343,3111.2,3111.1,0.81630476]
[1731725768584,3.2139,3111.5,3111.1,1.03172457]
[1731725768895,0.03404343,3111.2,3111.1,1.55331793]
[1731725769048,3.2139,3111.5,3111.1,1.55331793]
[1731725769252,0.03404343,3111.2,3111.1,1.55331793]
[1731725769583,3.2139,3111.5,3111.2,0.8295]
[1731725769747,3.2139,3111.5,3111.2,1.06778179]
[1731725769950,3.21399,3111.4,3111.2,1.06778179]
[1731725772089,3.21399,3111.4,3111.2,1.07099655]
[1731725772423,3.21409,3111.3,3111.2,1.07099655]
[1731725773908,3.21409,3111.3,3111.2,0.83271476]
[1731725774110,3.21409,3111.3,3111.2,0.00321476]
[1731725774260,3.96859,3111.3,3111.2,4.76e-06]
[1731725774605,7.52859,3111.3,3111.2,4.76e-06]
[1731725774806,9.05802534,3111.3,3111.2,4.76e-06]
[1731725775880,9.06802534,3111.3,3111.2,4.76e-06]
[1731725777944,9.10214839,3111.3,3111.2,4.76e-06]
[1731725778147,9.08214839,3111.3,3111.2,4.76e-06]
[1731725780050,5.53214839,3111.3,3111.2,4.76e-06]
[1731725780255,3.24821305,3111.3,3111.2,4.76e-06]
[1731725781267,4.06821305,3111.3,3111.2,4.76e-06]
[1731725781671,7.61821305,3111.3,3111.2,4.76e-06]
[1731725782988,10.51859301,3111.3,3111.2,4.76e-06]
[1731725783300,13.10523931,3111.3,3111.2,4.76e-06]
[1731725786602,13.25736719,3111.3,3111.2,4.76e-06]
[1731725786801,13.10523931,3111.3,3111.2,4.76e-06]
[1731725787908,22.02523931,3111.3,3111.2,4.76e-06]
[1731725796285,3.21533,3110.1,3110.0,0.8206]
[1731725796686,3.24764873,3110.1,3110.0,0.8206]
[1731725798387,3.24764873,3110.1,3110.0,0.82381476]
[1731725800519,0.03231873,3110.1,3110.0,0.82381476]
[1731725800880,3.21521,3110.3,3110.0,0.82381476]
[1731725801080,3.21521,3110.3,3110.2,0.7875]
[1731725801583,3.21521,3110.3,3110.2,0.79071476]
[1731725803123,3.21521,3110.3,3110.2,0.00321476]
[1731725807934,3.24761655,3110.3,3110.2,0.00321476]
[1731725808347,3.24761655,3110.3,3110.2,0.79071476]
[1731725810923,3.24761655,3110.3,3110.2,0.00321476]
[1731725812154,4.21537321,3110.3,3110.2,0.00321476]
[1731725812438,4.76537321,3110.3,3110.2,0.00321476]
[1731725813339,4.76537321,3110.3,3110.2,4.76e-06]
[1731725813498,7.76537321,3110.3,3110.2,4.76e-06]
[1731725813698,8.60697321,3110.3,3110.2,4.76e-06]
[1731725814301,8.61697321,3110.3,3110.2,4.76e-06]
[1731725815452,8.60697321,3110.3,3110.2,4.76e-06]
[1731725820280,8.61697321,3110.3,3110.2,4.76e-06]
[1731725823477,17.53697321,3110.3,3110.2,4.76e-06]
[1731725824756,18.87670505,3110.3,3110.2,4.76e-06]
[1731725824962,3.21626,3109.2,3109.1,0.1452531]
[1731725825366,3.24801994,3109.2,3109.1,0.1452531]
[1731725825841,3.24801994,3109.2,3109.1,0.9514531]
[1731725826313,3.24801994,3109.2,3109.1,2.29118494]
[1731725826442,3.24801994,3109.2,3109.1,0.9514531]
[1731725826640,3.24801994,3109.2,3109.1,0.95466786]
[1731725831945,0.03175994,3109.2,3109.1,0.95466786]
[1731725832149,0.03175994,3109.2,3109.1,1.40468249]
[1731725832343,3.21595,3109.5,3109.2,0.8202]
[1731725832561,3.21581,3109.7,3109.2,0.8202]
[1731725832794,3.21581,3109.7,3109.4,0.8202]
[1731725832943,3.21561,3109.9,3109.4,0.8202]
[1731725833146,3.21561,3109.9,3109.6,0.8202]
[1731725833446,3.21564,3109.8,3109.6,0.8202]
[1731725833754,3.21564,3109.8,3109.7,1.05908119]
[1731725834159,3.21546,3110.0,3109.8,0.8202]
[1731725834361,3.21553,3109.9,3109.8,0.8202]
[1731725834960,3.2154,3110.1,3109.8,1.05904979]
[1731725835171,8.92,3111.5,3110.5,0.8202]
[1731725835382,3.21398,3111.4,3111.0,0.8202]
[1731725835643,3.21429,3111.1,3111.0,0.82341476]
[1731725837475,3.21409,3111.3,3111.0,0.82341476]
[1731725837681,3.21368,3111.7,3111.0,0.82341476]
[1731725837908,0.03164326,3111.2,3111.0,0.82341476]
[1731725838389,3.21399,3111.4,3111.0,0.82341476]
[1731725838600,0.03158648,3111.1,3111.0,0.82341476]
[1731725838792,3.21399,3111.4,3111.0,0.82341476]
[1731725838979,0.03158648,3111.1,3111.0,0.82341476]
[1731725839179,3.21399,3111.4,3111.0,0.82341476]
[1731725839378,0.03401621,3111.1,3111.0,0.82341476]
[1731725839678,0.03158648,3111.1,3111.0,0.82341476]
[1731725839887,3.21399,3111.4,3111.0,0.82341476]
[1731725840110,0.03401621,3111.1,3111.0,0.82341476]
[1731725840299,3.21399,3111.4,3111.0,0.82341476]
[1731725840602,0.03401621,3111.1,3111.0,0.82341476]
[1731725840828,0.0341385,3111.3,3111.0,1.19598468]
[1731725840968,3.2482285,3111.3,3111.0,0.82341476]
[1731725841170,3.21409,3111.3,3111.0,0.82341476]
[1731725841405,0.03407735,3111.2,3111.0,0.82341476]
[1731725841677,3.2142,3111.2,3111.0,0.82341476]
[1731725841870,0.03134371,3111.1,3111.0,0.82341476]
[1731725842167,3.24563371,3111.1,3111.0,0.82341476]
[1731725843523,0.03134371,3111.1,3111.0,0.82341476]
[1731725844023,3.21398,3111.4,3111.0,0.82341476]
[1731725844224,0.03134371,3111.1,3111.0,1.19598468]
[1731725844380,0.03134371,3111.1,3111.0,0.82341476]
[1731725844585,3.2141,3111.3,3111.0,0.82341476]
[1731725844779,0.03158648,3111.1,3111.0,0.82341476]
[1731725845285,3.21388,3111.5,3111.0,0.82341476]
[1731725845486,0.02959565,3111.1,3111.0,0.82341476]
[1731725845686,3.21388,3111.5,3111.0,0.82341476]
[1731725845888,0.02959942,3111.1,3111.0,0.82341476]
[1731725846127,3.21388,3111.5,3111.0,0.82341476]
[1731725846430,0.03171366,3111.1,3111.0,0.82341476]
[1731725846592,3.21388,3111.5,3111.0,1.52386548]
[1731725846791,0.03188853,3111.4,3111.0,1.52386548]
[1731725847404,0.03188853,3111.4,3111.1,0.8102]
[1731725847584,0.03188853,3111.4,3111.1,3.21427]
[1731725847789,3.21365,3111.8,3111.3,0.8102]
[1731725847986,3.21379,3111.6,3111.3,0.8102]
[1731725848188,3.21379,3111.6,3111.3,0.81341476]
[1731725848426,0.02982458,3111.5,3111.3,0.81341476]
[1731725849314,3.24376458,3111.5,3111.3,0.81341476]
[1731725849640,3.21398,3111.4,3111.3,0.00321476]
[1731725849940,3.2437516,3111.4,3111.3,0.00321476]
[1731725851917,3.2437516,3111.4,3111.3,0.81151476]
[1731725853626,3.21398,3111.4,3111.3,0.81151476]
[1731725853960,3.24375393,3111.4,3111.3,0.81151476]
[1731725854112,0.02977393,3111.4,3111.3,0.81151476]
[1731725854456,0.02978429,3111.4,3111.3,0.81151476]
[1731725854615,3.21357,3111.8,3111.3,1.21409524]
[1731725854810,3.24362323,3111.7,3111.3,0.81151476]
[1731725857913,3.2139,3111.5,3111.3,0.81151476]
[1731725858318,3.24589174,3111.4,3111.3,0.81151476]
[1731725859053,3.89187091,3111.4,3111.3,0.00321476]
[1731725861849,8.19877091,3111.4,3111.3,0.00321476]
[1731725862881,8.19877091,3111.4,3111.3,4.76e-06]
[1731725862882,8.20877091,3111.4,3111.3,4.76e-06]
[1731725863039,3.21552,3110.0,3109.7,0.7692]
[1731725863662,3.21564,3109.8,3109.7,0.7692]
[1731725864166,3.24657687,3109.8,3109.7,0.7692]
[1731725864337,0.03093687,3109.8,3109.7,0.7692]
[1731725864742,3.21534,3110.1,3109.7,0.7692]
[1731725865075,0.0289607,3110.0,3109.7,0.77241476]
[1731725866361,0.0289607,3110.0,3109.7,1.46147668]
[1731725866584,0.0289607,3110.0,3109.9,4.00333]
[1731725866798,3.21474,3110.7,3110.0,7.00323]
[1731725866947,3.21474,3110.7,3110.1,0.2384631]
[1731725867140,3.21474,3110.7,3110.2,1.0262631]
[1731725867350,3.21492,3110.5,3110.2,0.79101476]
[1731725867900,3.21512,3110.3,3110.2,0.79101476]
[1731725868255,3.2514797,3110.3,3110.2,0.79101476]
[1731725870476,0.0363597,3110.3,3110.2,0.79101476]
[1731725871578,3.21486,3110.6,3110.2,0.79101476]
[1731725872075,0.03649225,3110.5,3110.2,0.79101476]